Cogmind - Beta 11 @@@ ROGUE MODE // 2022.03.19 @ 17:06:08 Player: 277 Result: Destroyed by G-34 Mercenary with Small Laser Performance ------------- Evolutions (0) 0 Regions Visited (1) 200 Robots Destroyed (20) 100 Value Destroyed (294) 294 Prototype IDs (0) 0 Alien Tech Used (0) 0 Bonus (0) 0 TOTAL SCORE: 594 Bonus ------- None Cogmind --------- Core Integrity 0/250 Matter 300/300 Energy 68/100 System Corruption 0% Temperature Hot (248) Movement Treading (160) Location -10/Materials Parts ------- > --- POWER (1) -------- (None) > --- PROPULSION (2) --- Light Treads > --- UTILITY (2) ------ Small Storage Unit > --- WEAPON (2) ------- (None) > --- INVENTORY (8) ---- Medium Matter Pod (89) Improved Terrain Scanner Peak State ------------ > --- POWER ------------ Ion Engine > --- PROPULSION ------- Aluminum Leg Aluminum Leg > --- UTILITY ---------- Small Storage Unit Seismic Detector > --- WEAPON ----------- Medium Laser Assault Rifle > --- INVENTORY -------- (None) [Rating: 7] Favorites ----------- Power Ion Engine Engine Ion Engine Propulsion Aluminum Leg Treads Light Treads Leg Aluminum Leg Utility Small Storage Unit Device Seismic Detector Storage Small Storage Unit Weapon Assault Rifle Energy Gun Medium Laser Ballistic Gun Assault Rifle Special Weapon Mining Laser Build | -11 -10 ------- Run | Scr Mat Slots Evolved . | . . Power . | . . Propulsion . | . . Utility . | . . Weapon . | . . Parts Attached 9 | 7 2 Power 1 | 1 . Engine 1 | 1 . Core . | . . Reactor . | . . Propulsion 3 | 2 1 Treads 1 | . 1 Leg 2 | 2 . Wheel . | . . Hover . | . . Flight . | . . Utility 2 | 2 . Device 1 | 1 . Storage 1 | 1 . Processor . | . . Hackware . | . . Protection . | . . Artifact . | . . Weapon 3 | 2 1 Energy Gun 1 | 1 . Energy Cannon . | . . Ballistic Gun 1 | 1 . Ballistic Cannon . | . . Launcher . | . . Special Weapon 1 | . 1 Impact Weapon . | . . Slashing Weapon . | . . Piercing Weapon . | . . Special Melee Weapon . | . . Unidentified Prototypes . | . . Parts Lost 7 | . 7 Power 1 | . 1 Propulsion 2 | . 2 Utility 1 | . 1 Weapon 3 | . 3 Highest Loss Streak 7 | . 7 To Critical Strikes . | . . Average Slot Usage (%) 98 | . 98 Engine 13 | . 13 Treads 1 | . 1 Leg 26 | . 26 Device 13 | . 13 Storage 14 | . 14 Energy Gun 13 | . 13 Ballistic Gun 13 | . 13 Naked Turns . | . . Heaviest Build 15 | 15 15 Greatest Support 20 | 20 20 Greatest Overweight (x) . | . . Average Overweight (x) . | . . Largest Inventory Capacity 8 | 8 8 Average Capacity 7 | 6 8 Most Carried 4 | 4 4 Average Carried 3 | 1 3 Final Capacity 8 | 8 8 Final Carried 4 | 4 2 Class Distribution -------------------- 100% | Mutant Dominant Class ---------------- Mutant | -10/Materials Resources | -11 -10 ----------- Run | Scr Mat Matter Collected 526 | 396 130 Remotely . | . . Salvage Created 609 | 270 339 Parts 42 | 20 22 Haulers Intercepted 1 | . 1 Recyclers Shooed 2 | 1 1 Parts Field Recycled . | . . Retrieved Matter . | . . Parts Self-Destructed . | . . Prevented . | . . Kills | -11 -10 ------- Run | Scr Mat Combat Hostiles Destroyed 9 | . 9 Guns 9 | . 9 Classes Destroyed 6 | 3 3 Worker 4 | 2 2 Tunneler 5 | 5 . Hauler 1 | . 1 Recycler 1 | 1 . Swarmer 3 | . 3 Grunt 6 | . 6 Best Kill Streak 6 | 6 6 Combat Bots Only 5 | . 5 Max Kills in Single Turn 1 | 1 1 Gunslinging . | . . Exploded . | . . Melee . | . . Uniques/NPCs Destroyed . | . . Combat | -11 -10 -------- Run | Scr Mat Damage Taken 826 | . 826 Core 255 | . 255 Absorbed by Shields . | . . Core Remaining (%) 100 | 100 . Volleys Fired 66 | 17 49 Largest 2 | 2 2 Hottest 100 | 70 100 Shots Fired 127 | 34 93 Gun 126 | 34 92 Cannon . | . . Launcher . | . . Special 1 | . 1 Kinetic 61 | 17 44 Thermal 66 | 17 49 Explosive . | . . Electromagnetic . | . . Robot Hit Streak 10 | 9 10 Robot Miss Streak 7 | 4 7 Penetration Max . | . . Secondary Targets 4 | . 4 Max Gunslinging Chain 1 | . 1 Shots Hit Robots 79 | 22 57 Core Hits 30 | 9 21 Critical Kills . | . . Critical Parts Destroyed . | . . Critical Strikes 7 | 2 5 Burn 7 | 2 5 Melee Attacks . | . . Impact . | . . Slashing . | . . Piercing . | . . Sneak Attacks . | . . Combat Hostiles . | . . Follow-up Attacks . | . . Damage Inflicted 1081 | 293 788 Guns 1057 | 293 764 Cannons . | . . Explosions . | . . Melee . | . . Ramming . | . . Kinetic 548 | 155 393 Thermal 533 | 138 395 Explosive . | . . Electromagnetic . | . . Impact . | . . Slashing . | . . Piercing . | . . Highest Corruption . | . . Average Corruption . | . . Corruption Purged . | . . Corruption Blocked . | . . Overload Shots . | . . Overflow Damage . | . . Projectiles . | . . Explosions . | . . Melee . | . . Knockbacks . | . . Impact . | . . Kinetic . | . . Secondary . | . . Self-Inflicted Damage . | . . Shots . | . . Rammed . | . . Targets Rammed . | . . Kicked . | . . Crushed . | . . Highest Temperature 318 | 81 318 Average Temperature 72 | 31 86 Received Heat Transfer 387 | . 387 Effects 1 | . 1 Energy Bleed 1 | . 1 Siege Activations . | . . Robots Corrupted . | . . Combat Hostiles . | . . Parts Fried . | . . Impact Corruptions . | . . Robots Melted . | . . Combat Hostiles . | . . Parts Melted 1 | 1 . Heat Transferred 2085 | 555 1530 Parts Sabotaged . | . . Parts Stolen . | . . Parts Stripped . | . . Power Chain Reactions . | . . Missiles Intercepted . | . . Alert | -11 -10 ------- Run | Scr Mat Peak Influence 168 | 40 168 Initial 26 | . 26 Average 59 | 15 73 Maximum Alert Level . | . . Low Security (%) 100 | 100 100 Level 1 . | . . Level 2 . | . . Level 3 . | . . Level 4 . | . . Level 5 . | . . High Security . | . . Max Security . | . . Squads Dispatched 4 | . 4 Investigation 3 | . 3 Extermination . | . . Reinforcement 1 | . 1 Assault . | . . Garrison . | . . Intercept . | . . Searches Triggered . | . . Construction Impeded . | . . Haulers Reinforced . | . . Active Scanning Responses . | . . Cargo Convoy Interrupts . | . . Stealth | -11 -10 --------- Run | Scr Mat Distress Signals 2 | . 2 Communications Jammed . | . . Distress Signals . | . . Times Spotted 16 | . 16 Peak Tracking Total 6 | . 6 Tactical Retreats . | . . Traps | -11 -10 ------- Run | Scr Mat Traps Triggered 1 | . 1 Indirectly . | . . Trap Hack Attempts . | . . Triggered . | . . Disarmed . | . . Reprogrammed . | . . Reused . | . . Traps Extracted . | . . Installed . | . . Triggered . | . . Machines | -11 -10 ---------- Run | Scr Mat Machines Disabled . | . . Max in Single Turn . | . . Machines Sabotaged . | . . Garrisons Compromised . | . . Overloaded Fab Kills . | . . Hacking | -11 -10 --------- Run | Scr Mat Machines Accessed 2 | . 2 Terminals 1 | . 1 Fabricators . | . . Repair Stations . | . . Recycling Units 1 | . 1 Scanalyzers . | . . Garrison Access . | . . Total Hacks 6 | . 6 Successful 3 | . 3 Failed 3 | . 3 Catastrophic . | . . Database Lockouts . | . . Manual 6 | . 6 Terminals 4 | . 4 Fabricators . | . . Repair Stations . | . . Recycling Units 2 | . 2 Scanalyzers . | . . Garrison Access . | . . Terminal Hacks 1 | . 1 Unreport Threat 1 | . 1 Fabricator Hacks . | . . Repair Station Hacks . | . . Recycling Unit Hacks . | . . Scanalyzer . | . . Garrison Access Hacks . | . . Unauthorized Hacks 2 | . 2 Terminals 1 | . 1 Sabotage 1 | . 1 Fabricators . | . . Repair Stations . | . . Recycling Units 1 | . 1 Tunnel 1 | . 1 Scanalyzers . | . . Garrison Access . | . . Data Cores Recovered . | . . Used . | . . Hacking Detections 2 | . 2 Full Trace Events . | . . Feedback Events . | . . Feedback Blocked . | . . Robot Schematics Acquired . | . . Robots Built . | . . Authchips . | . . Time . | . . Total Robot Build Rating . | . . Part Schematics Acquired . | . . Parts Built . | . . Authchips . | . . Time . | . . Total Part Build Rating . | . . Parts Repaired . | . . Time . | . . Parts Recycled . | . . Recycled Matter . | . . Retrieved Matter . | . . Retrieved Components . | . . Parts Scanalyzed . | . . Part Schematics Acquired . | . . Parts Damaged . | . . Bothacking | -11 -10 ------------ Run | Scr Mat Used RIF Installer . | . . Robots Hacked . | . . Non-combat . | . . Combat . | . . Robot Hacks Applied . | . . Relay Couplers Released . | . . Fabnet Peak Effective % . | . . Robots Rewired . | . . Allies Hacked . | . . Hacks Repelled . | . . Allies | -11 -10 -------- Run | Scr Mat Total Allies . | . . Largest Group . | . . Highest-Rated Group . | . . Highest-Rated Ally . | . . Total Orders . | . . Ally Attacks . | . . Total Damage . | . . Kills . | . . Allies Corrupted . | . . Allies Melted . | . . Intel | -11 -10 ------- Run | Scr Mat Robot Analysis Total . | . . Derelict Logs Recovered . | . . Drone Launches . | . . Drone Recoveries . | . . Exploration | -11 -10 ------------- Run | Scr Mat Turns Passed 504 | 119 385 Spaces Moved 226 | 47 179 Core 10 | 10 . Treads 5 | . 5 Legs 211 | 37 174 Wheels . | . . Hover . | . . Flight . | . . Fastest Speed 50 | 50 120 Average Speed 117 | 105 121 Slowest Speed 160 | 120 160 Overloaded Moves . | . . Propulsion Burnouts . | . . Robots Hopped . | . . Cave-ins Triggered . | . . Exploration Rate (%) 24 | 3 46 Regions Visited 1 Branch Regions . Pre-discovered Areas 1 | . 1 Known Exits Taken . | . . Unknown Exits Taken 1 | 1 . Scrap Searched . | . . Spaces Dug . | . . Terrain Destroyed . | . . Melee . | . . Projectile . | . . AOE . | . . Terrain Rammed . | . . Walls Destroyed . | . . Machines Disabled . | . . Actions | -11 -10 --------- Run | Scr Mat Total 331 | 79 252 Wait 27 | 5 22 Move 225 | 46 179 Hop . | . . Pick Up 4 | 4 . Fast Attach 7 | 7 . Attach 2 | . 2 Detach . | . . Swap . | . . Drop . | . . Fire 66 | 17 49 Melee . | . . Ram . | . . Kick . | . . Crush . | . . Escape Stasis . | . . Rewire . | . . Trap . | . . Miscellaneous . | . . Route ------- -11/Scrapyard -10/Materials (discovered 1 exit: [*Min]) History --------- Turn | Location | Event 7 | -11/Scrapyard | Discovered new exit (range 16) 120 | -11/Scrapyard | Entered Materials 311 | -10/Materials | Build established: Mutant 427 | -10/Materials | Discovered new exit (range 10) 474 | -10/Materials | Core integrity fell below 50% 494 | -10/Materials | Core integrity fell below 20% 505 | -10/Materials | Destroyed by G-34 Mercenary with Small Laser Last Messages --------------- 00490_ G-47 Trooper destroyed. 00490_ Switching to secondary target: G-47 Trooper. 00490_ G-47 Trooper suffers critical hit (Burn). 00491_ K-01 Serf collects debris. 00491_ Assault Rifle destroyed. 00493_ G-34 Mercenary suffers critical hit (Burn). 00497_ Med. Laser destroyed. 00497_ Ion Engine destroyed. 00498_ Seismic Detector destroyed. 00499_ K-01 Serf collects debris. 00500_ K-01 Serf destroyed. 00501_ Mining Laser destroyed. 00502_ G-34 Mercenary heat spikes uncontrollably. 00502_ K-01 Serf collects debris. 00503_ Aluminum Leg destroyed. 00503_ G-34 Mercenary overheating. 00504_ G-34 Mercenary heat damages Sml. Laser. 00504_ Acquired 50 matter. 00504_ G-34 Mercenary overheating. 00505_ K-01 Serf collects debris. Map ----- +----------------------------------------------------+ | """ #??# # #???????????????????????????? | | ######??# ##########???????????????????????????? | | ????????# #????????????????????????????????????? | | ????????# #????????????????????????????????????? | | ######### #############????????????????????????? | | ! ???????????????????????? | | % ???????????????????????? | | "???????????????????????? | | ##########+########### T???????????????????????? | | ?????# #?????????????????????????????????? | | ?????# #??????? ???????????????????????? | | ?????# """ """ #?????? ???????????????????????? | | ?????# """ """ #?????? ???????????????????????? | | ?????# """ """ #?????? "??????????????????????? | | ?????# #??????# "??????????????????????? | | ?????# #??????# ??????????????????????? | | ?????# #??????# ??????????????????????? | | ?????###########??????# ??????????????????????? | | ???????????????????#### g##?????????????????????? | | ???????????????????#" #?????????????????????? | | ???????????????????#"" #?????????????????????? | | ???????????????????#!! #?????????????????????? | | ???????????????????#"" < #?????????????????????? | | ???????????????????#!! #???#######???????????? | | ???????????????????#"" w! #?? ??????????? | | ???????????????????#" %@ #? ?????????? | | ???????????????????####gkg## ?????????? | | ?????????????????###### kk%= % ?????????? | | ################## [ ! [ * ?????????? | | =%= %[ ?????????? | | ! * ?????????? | | T ############+??????????? | | ################## u " #??????????????????????? | | ?????????????????#t #??????????????????????? | | ?????????????????# #??????????????????????? | | ?????????????????# """" #??????????????????????? | | ?????????????????# """" #??????????????????????? | | ????????????????? """" ?????????????????????? | | ???????????????? !????????????????????? | | ??????????????? [[#??????????????????? | | "?????????????#### [[#??????????????????? | | ???????????????##+##?##+# !!#??????????????????? | | ????????????????????????? !!#??????????????????? | | ?????????????????????????###??????????????????? | | ??????????????????????????????????????????????? | | ??????????????????????????????????????????????? | | #?????????????????????????????????????????????? | | ??????????????????????????????????????????????? | | #????????????????????????????????????????????????? | | ?????????????????????????????????????????????????? | +----------------------------------------------------+ Best States ------------- Heat Dissipation 25 Energy Generation 10 Energy Capacity 250 Matter Stores 300 Matter Capacity 300 Sight Range 16 Terrain Scan Density 10 Evasion (%) 55 Recoil Reduction 1 Item Schematics ----------------- None Robot Schematics ------------------ None Fabricated ------------ Nothing Alien Tech Used ----------------- None Achievements -------------- None Challenges ------------ None Game ------ Seed AlloyVisualChip Manual? 0 Play Time 00:14:08 Cumulative 248.9 hours Start 2022.03.19 @ 16:28:33 End 2022.03.19 @ 17:06:08 Sessions 1 Manual Loads 0 Difficulty Rogue Special Mode None Game No. 178 Rogue 178 Adventurer 0 Explorer 0 Win Type - Total 1 Types 1/0/0/0/0/0/0/0/0 Lore% 61 Gallery% 67 Achievement% 52 Wizard Run 0 Options --------- ASCII 0 Keyboard 0 Movement Mouse Keybinds 0 Fullscreen 1 Font 18/SmallcapsGlow Map View 76x50 Tactical HUD 1 Map Filters NONE Filters NONE Steam 1 RUN: 9ceb1e94-14df-49cf-8c0a-58f9cbf34660